[Event "*** Titled Tuesday Blitz"]
[Site "Chess.com"]
[Date "2021.04.27"]
[Round "7"]
[White "MPGM"]
[Black "monikarozman"]
[Result "1-0"]
[WhiteElo "2489"]
[BlackElo "2210"]
[TimeControl "180+1"]
[EndTime "11:17:29 PDT"]
[Termination "MPGM won by resignation"]

1. e4 {[%clk 0:03:00.9]} 1... c5 {[%clk 0:02:59.9]} 2. Nf3 {[%clk 0:03:00.3]}
2... Nc6 {[%clk 0:02:59.9]} 3. Bb5 {[%clk 0:02:59.1]} 3... g6 {[%clk 0:02:59.4]}
4. O-O {[%clk 0:02:58.4]} 4... Bg7 {[%clk 0:02:59]} 5. Re1 {[%clk 0:02:59.1]}
5... e5 {[%clk 0:02:56.8]} 6. Bxc6 {[%clk 0:02:58.4]} 6... dxc6 {[%clk
0:02:56.4]} 7. d3 {[%clk 0:02:56.2]} 7... Qc7 {[%clk 0:02:49.2]} 8. Be3 {[%clk
0:02:40.9]} 8... b6 {[%clk 0:02:48.6]} 9. a3 {[%clk 0:02:35.9]} 9... Nf6 {[%clk
0:02:15.9]} 10. b4 {[%clk 0:02:24.8]} 10... O-O {[%clk 0:02:13.3]} 11. bxc5
{[%clk 0:02:23.9]} 11... Ng4 {[%clk 0:02:02.7]} 12. Nbd2 {[%clk 0:02:02.3]}
12... f5 {[%clk 0:01:54.2]} 13. h3 {[%clk 0:01:47.9]} 13... Nxe3 {[%clk
0:01:28.9]} 14. Rxe3 {[%clk 0:01:47.3]} 14... f4 {[%clk 0:01:26.2]} 15. Re1
{[%clk 0:01:46.8]} 15... Qe7 {[%clk 0:01:20]} 16. cxb6 {[%clk 0:01:35]} 16...
axb6 {[%clk 0:01:19.7]} 17. Qb1 {[%clk 0:01:35.7]} 17... b5 {[%clk 0:01:14.3]}
18. Qb4 {[%clk 0:01:21.8]} 18... Qf6 {[%clk 0:01:07.4]} 19. a4 {[%clk
0:01:20.3]} 19... bxa4 {[%clk 0:01:00]} 20. Rxa4 {[%clk 0:01:19.8]} 20... Rxa4
{[%clk 0:01:00.7]} 21. Qxa4 {[%clk 0:01:19.5]} 21... g5 {[%clk 0:00:59.8]} 22.
Rb1 {[%clk 0:01:14.9]} 22... h5 {[%clk 0:00:58.7]} 23. Rb6 {[%clk 0:00:58.3]}
23... Bd7 {[%clk 0:00:48.4]} 24. Nc4 {[%clk 0:00:21.5]} 24... Qe7 {[%clk
0:00:22.6]} 25. Rb7 {[%clk 0:00:12.6]} 25... g4 {[%clk 0:00:20.7]} 26. hxg4
{[%clk 0:00:11.3]} 26... hxg4 {[%clk 0:00:21.6]} 27. Qa7 {[%clk 0:00:08.5]}
27... gxf3 {[%clk 0:00:19.5]} 28. Rxd7 {[%clk 0:00:08.4]} 28... Qg5 {[%clk
0:00:19.7]} 29. Rxg7+ {[%clk 0:00:08]} 29... Qxg7 {[%clk 0:00:18.8]} 30. Qxg7+
{[%clk 0:00:08.9]} 30... Kxg7 {[%clk 0:00:19.4]} 31. Nxe5 {[%clk 0:00:06]} 31...
fxg2 {[%clk 0:00:18.9]} 32. Kxg2 {[%clk 0:00:06.9]} 32... Rc8 {[%clk 0:00:17.3]}
33. Kf3 {[%clk 0:00:06.2]} 33... Kf6 {[%clk 0:00:15.6]} 34. Kxf4 {[%clk
0:00:05.6]} 34... c5 {[%clk 0:00:15.1]} 35. Nc4 {[%clk 0:00:05.2]} 35... Ke6
{[%clk 0:00:14.6]} 36. Ke3 {[%clk 0:00:05]} 36... Rh8 {[%clk 0:00:13.8]} 37. f4
{[%clk 0:00:05.4]} 37... Rh2 {[%clk 0:00:13.8]} 38. f5+ {[%clk 0:00:04.9]} 38...
Ke7 {[%clk 0:00:13.7]} 39. c3 {[%clk 0:00:05.1]} 39... Rh1 {[%clk 0:00:12]} 40.
e5 {[%clk 0:00:03.4]} 40... Re1+ {[%clk 0:00:11.7]} 41. Kf4 {[%clk 0:00:03.6]}
41... Rf1+ {[%clk 0:00:11.4]} 42. Ke4 {[%clk 0:00:03.9]} 42... Re1+ {[%clk
0:00:09.8]} 43. Kd5 {[%clk 0:00:04]} 43... Rd1 {[%clk 0:00:10.2]} 44. f6+ {[%clk
0:00:04.3]} 44... Kf7 {[%clk 0:00:09.7]} 45. Nd6+ {[%clk 0:00:04.2]} 45... Kf8
{[%clk 0:00:10]} 46. d4 {[%clk 0:00:03.6]} 46... cxd4 {[%clk 0:00:09.7]} 47.
cxd4 {[%clk 0:00:04.5]} 47... Ra1 {[%clk 0:00:09.8]} 48. Ke6 {[%clk 0:00:04.8]}
48... Ra6 {[%clk 0:00:09.8]} 49. d5 {[%clk 0:00:05.1]} 49... Ra7 {[%clk
0:00:09.6]} 50. Nf5 {[%clk 0:00:03.7]} 50... Ra6+ {[%clk 0:00:09.5]} 51. d6
{[%clk 0:00:04]} 51... Rb6 {[%clk 0:00:10.1]} 52. Ne7 {[%clk 0:00:03.6]} 52...
Ra6 {[%clk 0:00:09.2]} 53. Ng6+ {[%clk 0:00:03.8]} 53... Ke8 {[%clk 0:00:09.1]}
54. f7+ {[%clk 0:00:04.7]} 1-0

[Event "*** Titled Tuesday Blitz"]
[Site "Chess.com"]
[Date "2021.04.27"]
[Round "7"]
[White "Nafania1"]
[Black "IMRosen"]
[Result "1/2-1/2"]
[WhiteElo "2545"]
[BlackElo "2669"]
[TimeControl "180+1"]
[EndTime "11:17:30 PDT"]
[Termination "Game drawn by repetition"]

1. e4 {[%clk 0:03:00.9]} 1... e5 {[%clk 0:02:52.1]} 2. Nf3 {[%clk 0:03:01]} 2...
Nf6 {[%clk 0:02:50.3]} 3. Nxe5 {[%clk 0:03:01.6]} 3... Nc6 {[%clk 0:02:50.3]} 4.
Nxc6 {[%clk 0:03:02.2]} 4... dxc6 {[%clk 0:02:50.7]} 5. Nc3 {[%clk 0:03:02.5]}
5... Bc5 {[%clk 0:02:50.5]} 6. h3 {[%clk 0:02:59.2]} 6... Bd4 {[%clk 0:02:50.5]}
7. d3 {[%clk 0:02:53.6]} 7... Qd6 {[%clk 0:02:40.8]} 8. Be3 {[%clk 0:02:40.7]}
8... Bxe3 {[%clk 0:02:18.5]} 9. fxe3 {[%clk 0:02:40.7]} 9... Qg3+ {[%clk
0:02:19.1]} 10. Kd2 {[%clk 0:02:41]} 10... Be6 {[%clk 0:02:16.8]} 11. Qf3 {[%clk
0:02:39.1]} 11... Qg5 {[%clk 0:02:09.3]} 12. Qf4 {[%clk 0:02:15.3]} 12... Qa5
{[%clk 0:02:02.2]} 13. a3 {[%clk 0:02:12.8]} 13... O-O-O {[%clk 0:01:58]} 14. b4
{[%clk 0:02:12.5]} 14... Qh5 {[%clk 0:01:51.2]} 15. Be2 {[%clk 0:02:12.1]} 15...
Qg6 {[%clk 0:01:48.3]} 16. g4 {[%clk 0:02:11.7]} 16... Nd7 {[%clk 0:01:43.8]}
17. Kc1 {[%clk 0:01:26.6]} 17... f6 {[%clk 0:01:43]} 18. Kb2 {[%clk 0:01:26.5]}
18... Rhe8 {[%clk 0:01:35.8]} 19. h4 {[%clk 0:01:24.7]} 19... Kb8 {[%clk
0:01:33.7]} 20. h5 {[%clk 0:01:20]} 20... Qf7 {[%clk 0:01:34.1]} 21. g5 {[%clk
0:01:00.8]} 21... fxg5 {[%clk 0:01:34.2]} 22. Qxg5 {[%clk 0:01:00.9]} 22... Nb6
{[%clk 0:01:25.7]} 23. Raf1 {[%clk 0:00:59.3]} 23... Qd7 {[%clk 0:01:26.1]} 24.
Rhg1 {[%clk 0:00:54]} 24... Re7 {[%clk 0:01:17.2]} 25. Bg4 {[%clk 0:00:54]}
25... Rde8 {[%clk 0:00:56.3]} 26. Bxe6 {[%clk 0:00:53.7]} 26... Qxe6 {[%clk
0:00:56.5]} 27. Qf5 {[%clk 0:00:53.4]} 27... Qh6 {[%clk 0:00:54]} 28. Qg5 {[%clk
0:00:45.9]} 28... Qd6 {[%clk 0:00:53.9]} 29. Qf5 {[%clk 0:00:44]} 29... Qh6
{[%clk 0:00:53.7]} 30. Qg5 {[%clk 0:00:44.3]} 30... Qd6 {[%clk 0:00:53.9]} 31.
Qf5 {[%clk 0:00:44.6]} 31... a5 {[%clk 0:00:41.3]} 32. Qc5 {[%clk 0:00:32.1]}
32... Qh6 {[%clk 0:00:31.6]} 33. Qg5 {[%clk 0:00:28.7]} 33... Qd6 {[%clk
0:00:32]} 34. Qc5 {[%clk 0:00:28.6]} 34... axb4 {[%clk 0:00:19.2]} 35. axb4
{[%clk 0:00:28.1]} 35... Qxc5 {[%clk 0:00:19.7]} 36. bxc5 {[%clk 0:00:28.2]}
36... Nd7 {[%clk 0:00:20.2]} 37. d4 {[%clk 0:00:28.3]} 37... Nf6 {[%clk
0:00:20.7]} 38. e5 {[%clk 0:00:28.7]} 38... Nxh5 {[%clk 0:00:20.7]} 39. Rf3
{[%clk 0:00:26]} 39... g6 {[%clk 0:00:20.5]} 40. Ne4 {[%clk 0:00:25.6]} 40...
Ng7 {[%clk 0:00:16.3]} 41. Nf6 {[%clk 0:00:25.4]} 41... Rh8 {[%clk 0:00:16.9]}
42. Rh3 {[%clk 0:00:23.8]} 42... Nf5 {[%clk 0:00:12.6]} 43. Rxg6 {[%clk
0:00:22.6]} 43... Nxe3 {[%clk 0:00:09.4]} 44. Rgh6 {[%clk 0:00:12.8]} 44... Nf5
{[%clk 0:00:08.7]} 45. Rxh7 {[%clk 0:00:11.7]} 45... Rexh7 {[%clk 0:00:06.3]}
46. Rxh7 {[%clk 0:00:10.8]} 46... Rxh7 {[%clk 0:00:06.7]} 47. Nxh7 {[%clk
0:00:11]} 47... Nxd4 {[%clk 0:00:07.3]} 48. Ng5 {[%clk 0:00:07.4]} 48... Kc8
{[%clk 0:00:06.1]} 49. Kc3 {[%clk 0:00:06.3]} 49... Nf5 {[%clk 0:00:05.9]} 50.
Kd3 {[%clk 0:00:05.2]} 50... Kd7 {[%clk 0:00:04.7]} 51. Ke4 {[%clk 0:00:05.5]}
51... Ng3+ {[%clk 0:00:04.4]} 52. Kf3 {[%clk 0:00:04.6]} 52... Nf5 {[%clk
0:00:03.9]} 53. Ke4 {[%clk 0:00:04.8]} 53... Ng3+ {[%clk 0:00:04.2]} 54. Kf3
{[%clk 0:00:05.1]} 54... Nf5 {[%clk 0:00:04]} 55. Ke4 {[%clk 0:00:05.3]} 1/2-1/2

[Event "*** Titled Tuesday Blitz"]
[Site "Chess.com"]
[Date "2021.04.27"]
[Round "7"]
[White "nss13"]
[Black "I_am_a_Miracle"]
[Result "1-0"]
[WhiteElo "2541"]
[BlackElo "2382"]
[TimeControl "180+1"]
[EndTime "11:17:30 PDT"]
[Termination "nss13 won on time"]

1. e4 {[%clk 0:03:00.9]} 1... g6 {[%clk 0:03:00]} 2. d4 {[%clk 0:03:00.5]} 2...
Bg7 {[%clk 0:03:00.3]} 3. Nf3 {[%clk 0:03:01.2]} 3... d6 {[%clk 0:03:00.4]} 4.
Bc4 {[%clk 0:03:01.7]} 4... Nf6 {[%clk 0:02:59.6]} 5. Qe2 {[%clk 0:03:02.3]}
5... c6 {[%clk 0:02:58.7]} 6. Bb3 {[%clk 0:03:01.8]} 6... O-O {[%clk 0:02:56.2]}
7. O-O {[%clk 0:03:01.4]} 7... Bg4 {[%clk 0:02:55.8]} 8. Nbd2 {[%clk 0:03:01]}
8... a5 {[%clk 0:02:52]} 9. a4 {[%clk 0:03:00.3]} 9... Na6 {[%clk 0:02:43.4]}
10. h3 {[%clk 0:02:58.3]} 10... Bxf3 {[%clk 0:02:40.5]} 11. Nxf3 {[%clk
0:02:59.2]} 11... Nd7 {[%clk 0:02:07.6]} 12. e5 {[%clk 0:02:47.6]} 12... dxe5
{[%clk 0:02:05.5]} 13. dxe5 {[%clk 0:02:48.5]} 13... Nac5 {[%clk 0:02:05.4]} 14.
Bc4 {[%clk 0:02:45.3]} 14... e6 {[%clk 0:01:35.8]} 15. b3 {[%clk 0:02:35.1]}
15... Qc7 {[%clk 0:01:31.9]} 16. Re1 {[%clk 0:02:33.8]} 16... Rfb8 {[%clk
0:01:22.6]} 17. Ba3 {[%clk 0:02:24.5]} 17... b6 {[%clk 0:01:15.7]} 18. Rad1
{[%clk 0:02:23.7]} 18... Rd8 {[%clk 0:01:15.1]} 19. Rd2 {[%clk 0:02:06.8]} 19...
Bh6 {[%clk 0:01:07.3]} 20. Rd4 {[%clk 0:02:01.6]} 20... Kg7 {[%clk 0:00:57.1]}
21. Red1 {[%clk 0:01:59.6]} 21... Nf8 {[%clk 0:00:42.2]} 22. Bxc5 {[%clk
0:01:48.7]} 22... bxc5 {[%clk 0:00:40.7]} 23. Rd6 {[%clk 0:01:49.2]} 23... Rd7
{[%clk 0:00:32.2]} 24. Qe4 {[%clk 0:01:07.4]} 24... Rc8 {[%clk 0:00:29.6]} 25.
g3 {[%clk 0:01:00.2]} 25... Kg8 {[%clk 0:00:28.9]} 26. Kg2 {[%clk 0:00:56.7]}
26... Bg7 {[%clk 0:00:28.4]} 27. R1d3 {[%clk 0:00:56.5]} 27... h6 {[%clk
0:00:26.5]} 28. h4 {[%clk 0:00:56.5]} 28... Qb7 {[%clk 0:00:17.1]} 29. Rd2
{[%clk 0:00:49.2]} 29... Qc7 {[%clk 0:00:16.9]} 30. Ba6 {[%clk 0:00:48.1]} 30...
Rcd8 {[%clk 0:00:11.6]} 31. Rxc6 {[%clk 0:00:39.7]} 31... Qa7 {[%clk 0:00:11.4]}
32. Rxd7 {[%clk 0:00:32.6]} 32... Nxd7 {[%clk 0:00:11.1]} 33. Rd6 {[%clk
0:00:27.8]} 33... Qb8 {[%clk 0:00:10]} 34. Bb5 {[%clk 0:00:25.3]} 34... Nf8
{[%clk 0:00:06.2]} 35. Rxd8 {[%clk 0:00:26.2]} 35... Qxd8 {[%clk 0:00:07]} 36.
Qd3 {[%clk 0:00:21.9]} 36... Qb6 {[%clk 0:00:06.9]} 37. Qe4 {[%clk 0:00:20.2]}
37... g5 {[%clk 0:00:05.2]} 38. hxg5 {[%clk 0:00:20]} 38... hxg5 {[%clk
0:00:05.1]} 39. Nxg5 {[%clk 0:00:20.1]} 39... Ng6 {[%clk 0:00:06]} 40. f4 {[%clk
0:00:19.8]} 40... Bf8 {[%clk 0:00:06.1]} 41. Nf3 {[%clk 0:00:19.8]} 41... c4
{[%clk 0:00:06.1]} 42. Bxc4 {[%clk 0:00:19.3]} 42... Qc5 {[%clk 0:00:06.3]} 43.
Bd3 {[%clk 0:00:17.8]} 43... Qc3 {[%clk 0:00:05.4]} 44. Qe1 {[%clk 0:00:16.2]}
44... Qc6 {[%clk 0:00:04.4]} 45. Bxg6 {[%clk 0:00:14.1]} 45... fxg6 {[%clk
0:00:03.5]} 46. Qe2 {[%clk 0:00:15]} 46... Bc5 {[%clk 0:00:02.9]} 47. Kh3 {[%clk
0:00:15.1]} 47... Qd5 {[%clk 0:00:02.8]} 48. Kh2 {[%clk 0:00:14.7]} 48... Bb6
{[%clk 0:00:02.3]} 49. Ng5 {[%clk 0:00:14.7]} 49... Kg7 {[%clk 0:00:01.4]} 50.
Qg2 {[%clk 0:00:14]} 50... Qc5 {[%clk 0:00:01.6]} 51. Qb7+ {[%clk 0:00:13.4]}
51... Bc7 {[%clk 0:00:01.7]} 52. Nxe6+ {[%clk 0:00:12.3]} 1-0

[Event "*** Titled Tuesday Blitz"]
[Site "Chess.com"]
[Date "2021.04.27"]
[Round "7"]
[White "Mikhal867"]
[Black "HanSchut"]
[Result "1-0"]
[WhiteElo "2440"]
[BlackElo "2287"]
[TimeControl "180+1"]
[EndTime "11:17:30 PDT"]
[Termination "Mikhal867 won by resignation"]

1. c4 {[%clk 0:02:57.4]} 1... Nf6 {[%clk 0:02:59.5]} 2. Nc3 {[%clk 0:02:57]}
2... d5 {[%clk 0:03:00]} 3. cxd5 {[%clk 0:02:56.4]} 3... Nxd5 {[%clk 0:03:00.9]}
4. e4 {[%clk 0:02:56.5]} 4... Nb4 {[%clk 0:03:00.4]} 5. Bc4 {[%clk 0:02:51.8]}
5... Nd3+ {[%clk 0:02:59.7]} 6. Ke2 {[%clk 0:02:50.9]} 6... Nf4+ {[%clk
0:03:00.3]} 7. Kf1 {[%clk 0:02:50.1]} 7... Be6 {[%clk 0:02:50.9]} 8. Bxe6 {[%clk
0:02:16.2]} 8... Nxe6 {[%clk 0:02:50.6]} 9. Nf3 {[%clk 0:02:13.9]} 9... c5
{[%clk 0:02:50.4]} 10. Nd5 {[%clk 0:02:08.2]} 10... Nc6 {[%clk 0:02:44.4]} 11.
b4 {[%clk 0:02:07.3]} 11... Nxb4 {[%clk 0:02:35.8]} 12. Nxb4 {[%clk 0:02:05.6]}
12... cxb4 {[%clk 0:02:35.8]} 13. d4 {[%clk 0:02:05.7]} 13... Qd7 {[%clk
0:02:29.1]} 14. Be3 {[%clk 0:01:59.1]} 14... O-O-O {[%clk 0:02:03.6]} 15. Rc1+
{[%clk 0:01:49.4]} 15... Kb8 {[%clk 0:01:59.6]} 16. d5 {[%clk 0:01:49.4]} 16...
Nc7 {[%clk 0:01:48.3]} 17. Bf4 {[%clk 0:01:45.4]} 17... Rc8 {[%clk 0:01:43.6]}
18. Ne5 {[%clk 0:01:40.8]} 18... Qb5+ {[%clk 0:01:31.9]} 19. Qe2 {[%clk
0:01:40.4]} 19... Qe8 {[%clk 0:01:05.1]} 20. Qc4 {[%clk 0:01:31.7]} 20... f6
{[%clk 0:00:53.9]} 21. Nd3 {[%clk 0:01:19.8]} 21... e5 {[%clk 0:00:46.8]} 22.
dxe6 {[%clk 0:01:19.5]} 22... Qc6 {[%clk 0:00:37.7]} 23. Qxc6 {[%clk 0:01:17.2]}
23... bxc6 {[%clk 0:00:38.6]} 24. Rxc6 {[%clk 0:01:16.1]} 24... Kb7 {[%clk
0:00:39]} 25. Rc4 {[%clk 0:01:04.5]} 25... Nxe6 {[%clk 0:00:30.3]} 26. Rxc8
{[%clk 0:01:03.2]} 26... Kxc8 {[%clk 0:00:31.2]} 27. Be3 {[%clk 0:01:03]} 27...
a5 {[%clk 0:00:30.3]} 28. Ke2 {[%clk 0:01:02.5]} 28... Kb7 {[%clk 0:00:30.2]}
29. f4 {[%clk 0:00:59.4]} 29... Be7 {[%clk 0:00:22.6]} 30. f5 {[%clk 0:00:59.4]}
30... Nc7 {[%clk 0:00:23]} 31. Rc1 {[%clk 0:00:55.7]} 31... Nb5 {[%clk
0:00:22.8]} 32. Kf3 {[%clk 0:00:40.8]} 32... Nc3 {[%clk 0:00:20.9]} 33. a3
{[%clk 0:00:38.7]} 33... Bd6 {[%clk 0:00:19.2]} 34. axb4 {[%clk 0:00:36.7]}
34... axb4 {[%clk 0:00:20.1]} 35. Bd4 {[%clk 0:00:32.3]} 35... Nb5 {[%clk
0:00:17.3]} 36. Ke3 {[%clk 0:00:18.2]} 36... Rc8 {[%clk 0:00:15.5]} 37. Rb1
{[%clk 0:00:16.6]} 37... Nxd4 {[%clk 0:00:09.9]} 38. Kxd4 {[%clk 0:00:16.4]}
38... Kc6 {[%clk 0:00:09.5]} 39. Nxb4+ {[%clk 0:00:13.1]} 39... Bxb4 {[%clk
0:00:09.9]} 40. Rxb4 {[%clk 0:00:12.9]} 40... Rd8+ {[%clk 0:00:10.5]} 41. Ke3
{[%clk 0:00:12.8]} 41... Rd1 {[%clk 0:00:10.6]} 42. Rc4+ {[%clk 0:00:12.2]}
42... Kb5 {[%clk 0:00:08.5]} 43. Rc2 {[%clk 0:00:11.9]} 43... Rd6 {[%clk
0:00:06.9]} 44. Kf4 {[%clk 0:00:11.6]} 44... Kb4 {[%clk 0:00:06.8]} 45. g4
{[%clk 0:00:09.7]} 45... Kb3 {[%clk 0:00:07.1]} 46. Rc7 {[%clk 0:00:09]} 46...
Rd2 {[%clk 0:00:06.1]} 47. h4 {[%clk 0:00:07.9]} 47... g5+ {[%clk 0:00:04]} 48.
hxg5 {[%clk 0:00:07.2]} 48... fxg5+ {[%clk 0:00:04.4]} 49. Kxg5 {[%clk
0:00:07.2]} 49... Rh2 {[%clk 0:00:04.7]} 50. Kf4 {[%clk 0:00:06.8]} 50... Kb4
{[%clk 0:00:04.6]} 51. e5 {[%clk 0:00:06.9]} 51... Kb5 {[%clk 0:00:05.1]} 52. e6
{[%clk 0:00:07.2]} 52... Kb6 {[%clk 0:00:05.8]} 53. Rc1 {[%clk 0:00:06.9]} 53...
Rf2+ {[%clk 0:00:05.2]} 54. Ke5 {[%clk 0:00:06.1]} 54... Re2+ {[%clk 0:00:05.4]}
55. Kf6 {[%clk 0:00:05.8]} 1-0

[Event "*** Titled Tuesday Blitz"]
[Site "Chess.com"]
[Date "2021.04.27"]
[Round "7"]
[White "Artem_Sadovsky"]
[Black "serhanberat_ozdemir"]
[Result "1/2-1/2"]
[WhiteElo "2696"]
[BlackElo "2579"]
[TimeControl "180+1"]
[EndTime "11:17:37 PDT"]
[Termination "Game drawn by repetition"]

1. Nf3 {[%clk 0:03:00.9]} 1... Nf6 {[%clk 0:03:00.4]} 2. c4 {[%clk 0:03:01]}
2... g6 {[%clk 0:03:01]} 3. b3 {[%clk 0:03:01.5]} 3... Bg7 {[%clk 0:03:01.8]} 4.
Bb2 {[%clk 0:03:02.3]} 4... O-O {[%clk 0:03:02.5]} 5. e3 {[%clk 0:03:01.8]} 5...
c5 {[%clk 0:03:00.8]} 6. Be2 {[%clk 0:03:01.9]} 6... Nc6 {[%clk 0:02:59.9]} 7.
O-O {[%clk 0:03:02.2]} 7... b6 {[%clk 0:02:51.8]} 8. d4 {[%clk 0:03:02.5]} 8...
cxd4 {[%clk 0:02:51.8]} 9. Nxd4 {[%clk 0:03:02.7]} 9... Bb7 {[%clk 0:02:49.9]}
10. Bf3 {[%clk 0:03:02.7]} 10... d5 {[%clk 0:02:22.5]} 11. cxd5 {[%clk
0:02:24.6]} 11... Nxd4 {[%clk 0:02:14]} 12. Bxd4 {[%clk 0:02:11.3]} 12... Bxd5
{[%clk 0:02:07.5]} 13. Nc3 {[%clk 0:02:01.5]} 13... Bxf3 {[%clk 0:02:02.9]} 14.
Qxf3 {[%clk 0:02:02.4]} 14... Rc8 {[%clk 0:01:55]} 15. Rfd1 {[%clk 0:02:00.3]}
15... Qd6 {[%clk 0:01:35.9]} 16. Ne4 {[%clk 0:01:41.6]} 16... Qc6 {[%clk
0:01:32.9]} 17. Nxf6+ {[%clk 0:01:37.2]} 17... Bxf6 {[%clk 0:01:32.2]} 18. Qxc6
{[%clk 0:01:33.4]} 18... Rxc6 {[%clk 0:01:33.1]} 19. Bxf6 {[%clk 0:01:34]} 19...
Rxf6 {[%clk 0:01:26.6]} 20. Rd7 {[%clk 0:01:33]} 20... a5 {[%clk 0:01:27]} 21.
Rc1 {[%clk 0:01:20.9]} 21... Ra8 {[%clk 0:01:25.6]} 22. g4 {[%clk 0:00:50.9]}
22... a4 {[%clk 0:01:11.8]} 23. b4 {[%clk 0:00:50.6]} 23... a3 {[%clk
0:01:08.7]} 24. Rxe7 {[%clk 0:00:47.6]} 24... Rd8 {[%clk 0:01:01.8]} 25. Rc2
{[%clk 0:00:33.7]} 25... Rd1+ {[%clk 0:00:38.8]} 26. Kg2 {[%clk 0:00:33.6]}
26... Rb1 {[%clk 0:00:35.4]} 27. g5 {[%clk 0:00:23.3]} 27... Rf5 {[%clk
0:00:33.1]} 28. h4 {[%clk 0:00:23]} 28... Rb2 {[%clk 0:00:26.3]} 29. Rc8+ {[%clk
0:00:22.7]} 29... Kg7 {[%clk 0:00:26.1]} 30. Ree8 {[%clk 0:00:23]} 30... Rbxf2+
{[%clk 0:00:20.2]} 31. Kg3 {[%clk 0:00:23.4]} 31... R2f3+ {[%clk 0:00:20.1]} 32.
Kg4 {[%clk 0:00:23.5]} 32... h5+ {[%clk 0:00:20.1]} 33. gxh6+ {[%clk 0:00:22]}
33... Kxh6 {[%clk 0:00:20.3]} 34. Rh8+ {[%clk 0:00:17.6]} 34... Kg7 {[%clk
0:00:20.8]} 35. h5 {[%clk 0:00:17.2]} 35... gxh5+ {[%clk 0:00:15.7]} 36. Rxh5
{[%clk 0:00:05.5]} 36... Rxh5 {[%clk 0:00:16.2]} 37. Kxf3 {[%clk 0:00:06.4]}
37... Rh2 {[%clk 0:00:15.9]} 38. Rc6 {[%clk 0:00:06.1]} 38... Rxa2 {[%clk
0:00:13.1]} 39. Rxb6 {[%clk 0:00:06.6]} 39... Rb2 {[%clk 0:00:13.7]} 40. Ke4
{[%clk 0:00:07.2]} 40... a2 {[%clk 0:00:12.8]} 41. Ra6 {[%clk 0:00:04.2]} 41...
Rxb4+ {[%clk 0:00:13.1]} 42. Kf5 {[%clk 0:00:03]} 42... Rb2 {[%clk 0:00:11.7]}
43. e4 {[%clk 0:00:03.2]} 43... Rf2+ {[%clk 0:00:10.1]} 44. Ke5 {[%clk
0:00:03.5]} 44... Rh2 {[%clk 0:00:08]} 45. Kf5 {[%clk 0:00:04]} 45... Rh5+
{[%clk 0:00:05.5]} 46. Kg4 {[%clk 0:00:04.4]} 46... Rh2 {[%clk 0:00:06.4]} 47.
Kg5 {[%clk 0:00:04.4]} 47... Rb2 {[%clk 0:00:06.8]} 48. Kf5 {[%clk 0:00:04.4]}
48... Rb5+ {[%clk 0:00:07.1]} 49. Kf4 {[%clk 0:00:04.5]} 49... Rb2 {[%clk
0:00:04.3]} 50. Kf5 {[%clk 0:00:05.1]} 1/2-1/2

[Event "*** Titled Tuesday Blitz"]
[Site "Chess.com"]
[Date "2021.04.27"]
[Round "7"]
[White "harlem4brew"]
[Black "Nuvas"]
[Result "0-1"]
[WhiteElo "2403"]
[BlackElo "2641"]
[TimeControl "180+1"]
[EndTime "11:17:40 PDT"]
[Termination "Nuvas won by checkmate"]

1. e4 {[%clk 0:03:00.9]} 1... c5 {[%clk 0:03:00]} 2. Nf3 {[%clk 0:03:00.4]} 2...
d6 {[%clk 0:03:00.6]} 3. d4 {[%clk 0:02:59.4]} 3... cxd4 {[%clk 0:03:01.3]} 4.
Nxd4 {[%clk 0:02:57.4]} 4... Nf6 {[%clk 0:03:01.3]} 5. Nc3 {[%clk 0:02:56.9]}
5... a6 {[%clk 0:03:01.9]} 6. Be2 {[%clk 0:02:57.1]} 6... e6 {[%clk 0:03:02]} 7.
O-O {[%clk 0:02:57.2]} 7... Nbd7 {[%clk 0:03:01.4]} 8. f4 {[%clk 0:02:57.3]}
8... b5 {[%clk 0:03:00.8]} 9. Bf3 {[%clk 0:02:56.8]} 9... Bb7 {[%clk 0:02:49.7]}
10. e5 {[%clk 0:02:51.2]} 10... Bxf3 {[%clk 0:02:47.7]} 11. Nxf3 {[%clk
0:02:40.5]} 11... Qb6+ {[%clk 0:02:30.5]} 12. Kh1 {[%clk 0:02:36.6]} 12... Ng4
{[%clk 0:02:30.6]} 13. Qe1 {[%clk 0:02:35.2]} 13... dxe5 {[%clk 0:02:01.6]} 14.
Nxe5 {[%clk 0:02:28.2]} 14... Ndxe5 {[%clk 0:01:28.8]} 15. fxe5 {[%clk
0:02:29.1]} 15... Be7 {[%clk 0:01:27.5]} 16. h3 {[%clk 0:02:25.1]} 16... h5
{[%clk 0:01:27.6]} 17. Ne4 {[%clk 0:02:21.2]} 17... Nxe5 {[%clk 0:01:24.2]} 18.
Qg3 {[%clk 0:02:17.6]} 18... Ng6 {[%clk 0:01:24.3]} 19. Bg5 {[%clk 0:02:13.7]}
19... h4 {[%clk 0:01:17.5]} 20. Qh2 {[%clk 0:02:06.7]} 20... Bxg5 {[%clk
0:01:10.6]} 21. Nxg5 {[%clk 0:02:05.4]} 21... O-O {[%clk 0:01:08.2]} 22. Rad1
{[%clk 0:01:58.4]} 22... Rad8 {[%clk 0:01:00.8]} 23. Rxd8 {[%clk 0:01:56.8]}
23... Qxd8 {[%clk 0:01:01.7]} 24. Nf3 {[%clk 0:01:56]} 24... Qd5 {[%clk
0:00:56.3]} 25. b3 {[%clk 0:01:54.4]} 25... Rc8 {[%clk 0:00:55.5]} 26. Rf2
{[%clk 0:01:39.5]} 26... e5 {[%clk 0:00:41.6]} 27. Rd2 {[%clk 0:01:33.1]} 27...
Qe4 {[%clk 0:00:41.7]} 28. Qg1 {[%clk 0:01:29.8]} 28... f6 {[%clk 0:00:34]} 29.
Qd1 {[%clk 0:01:19]} 29... Nf4 {[%clk 0:00:31.1]} 30. Kh2 {[%clk 0:01:14.7]}
30... Kh7 {[%clk 0:00:18.8]} 31. Nxh4 {[%clk 0:01:10.1]} 31... Rc3 {[%clk
0:00:15.2]} 32. Nf3 {[%clk 0:01:06.4]} 32... Ng6 {[%clk 0:00:12.6]} 33. Qe1
{[%clk 0:00:58.5]} 33... Qf4+ {[%clk 0:00:12.2]} 34. Kh1 {[%clk 0:00:51.2]}
34... e4 {[%clk 0:00:12.5]} 35. Ng1 {[%clk 0:00:46.3]} 35... Re3 {[%clk
0:00:11.8]} 36. Re2 {[%clk 0:00:44.1]} 36... Rxe2 {[%clk 0:00:12.3]} 37. Qxe2
{[%clk 0:00:44.7]} 37... Qf5 {[%clk 0:00:08.8]} 38. c4 {[%clk 0:00:37.2]} 38...
Nf4 {[%clk 0:00:08.7]} 39. Qf2 {[%clk 0:00:31.5]} 39... Qe5 {[%clk 0:00:06]} 40.
cxb5 {[%clk 0:00:28.1]} 40... axb5 {[%clk 0:00:05.9]} 41. Ne2 {[%clk 0:00:18]}
41... Nxe2 {[%clk 0:00:05.9]} 42. Qxe2 {[%clk 0:00:18.9]} 42... e3 {[%clk
0:00:06.5]} 43. a4 {[%clk 0:00:17.9]} 43... b4 {[%clk 0:00:06.8]} 44. a5 {[%clk
0:00:13.9]} 44... f5 {[%clk 0:00:07.3]} 45. a6 {[%clk 0:00:08.6]} 45... f4
{[%clk 0:00:07.6]} 46. a7 {[%clk 0:00:04.8]} 46... Qa5 {[%clk 0:00:05.9]} 47.
a8=Q {[%clk 0:00:02.4]} 47... Qxa8 {[%clk 0:00:05.6]} 48. Qh5+ {[%clk 0:00:03]}
48... Kg8 {[%clk 0:00:05.3]} 49. Qe2 {[%clk 0:00:03.6]} 49... Qe4 {[%clk
0:00:04.7]} 50. Qe1 {[%clk 0:00:02.5]} 50... e2 {[%clk 0:00:04.4]} 51. Kh2
{[%clk 0:00:01.7]} 51... Qe3 {[%clk 0:00:04.7]} 52. Qb1 {[%clk 0:00:01.4]} 52...
e1=Q {[%clk 0:00:04.2]} 53. Qg6 {[%clk 0:00:02]} 53... Q1g1# {[%clk 0:00:04]}
0-1